bitfinex/quotes_ETHUSD_20260202
["timestamp","ask_amount","ask_price","bid_price","bid_amount"]
[1770059562725,11.25362292,2352.3,2351.6,0.001]
[1770059568301,11.25362292,2352.3,2351.2,0.001]
[1770059568302,10.19083331,2352.2,2351.2,0.001]
[1770059568728,10.19083331,2352.0,2351.2,0.001]
[1770059568916,11.271904,2351.9,2351.2,0.001]
[1770059569117,11.271904,2351.9,2351.6,0.001]
[1770059569610,1.06301556,2351.8,2351.6,0.001]
[1770059572212,11.97359245,2351.8,2351.4,0.001]
[1770059572409,11.97359245,2351.8,2351.0,0.001]
[1770059572741,10.91057689,2351.6,2351.0,0.001]
[1770059574141,1.06315118,2351.5,2351.0,0.001]
[1770059574717,11.97370884,2351.6,2351.0,0.001]
[1770059575119,1.06313195,2351.6,2351.0,0.001]
[1770059575738,2.88285824,2351.7,2351.0,0.001]
[1770059575940,0.71349538,2351.6,2351.0,0.001]
[1770059576148,1.77660651,2351.6,2351.0,0.001]
[1770059576731,0.71349538,2351.6,2351.0,0.001]
[1770059577338,2.88285878,2351.7,2351.0,0.001]
[1770059581136,10.91057689,2351.6,2351.0,0.001]
[1770059581924,10.91057689,2351.3,2350.4,0.001]
[1770059582156,10.91057689,2351.1,2350.4,0.001]
[1770059582328,10.91057689,2350.9,2350.4,0.001]
[1770059582533,1.19739542,2350.8,2350.4,0.001]
[1770059582845,1.81976379,2351.7,2350.4,10.87721625]
[1770059583227,0.0011,2351.6,2350.4,10.87721625]
[1770059583438,0.0011,2351.6,2351.0,0.001]
[1770059586666,0.0011,2351.8,2351.0,10.87721625]
[1770059587050,0.0011,2351.8,2351.0,0.001]
[1770059587348,0.0011,2351.8,2350.7,0.8855826]
[1770059587548,0.0011,2351.8,2350.8,1.17617989]
[1770059587945,0.0011,2351.8,2350.8,12.05239614]
[1770059588347,0.0011,2351.8,2350.9,1.06342251]
[1770059589548,0.0011,2351.8,2350.8,13.11583899]
[1770059589778,10.91167689,2351.8,2350.7,0.8855826]
[1770059590074,12.05625892,2351.6,2350.4,1.06462229]
[1770059590280,12.05625892,2351.4,2350.4,0.001]
[1770059590484,12.05625892,2351.3,2350.4,0.001]
[1770059590688,1.31194899,2351.2,2350.4,0.001]
[1770059591178,0.0011,2351.8,2350.6,10.87621625]
[1770059592074,0.0011,2351.8,2350.8,10.87621625]
[1770059592468,0.0011,2351.8,2350.7,1.06351299]
[1770059594464,0.0011,2351.8,2350.6,4.25405198]
[1770059594666,0.0011,2351.8,2350.7,10.87621625]
[1770059594965,0.0011,2351.8,2350.8,12.39052661]
[1770059595589,0.0011,2352.1,2350.9,10.88905157]
[1770059596004,0.0011,2352.1,2350.9,10.87621625]
[1770059596691,0.0011,2352.1,2351.0,11.93959353]
[1770059596890,0.0011,2351.6,2351.0,11.93959353]
[1770059597091,0.0011,2351.6,2351.1,0.76056128]
[1770059598366,0.0011,2351.6,2351.2,0.892]
[1770059598700,0.0011,2351.6,2351.3,1.06324161]
[1770059599505,0.0011,2352.1,2351.3,1.06324161]
[1770059599677,0.0011,2352.4,2351.3,11.93945786]
[1770059600012,0.0011,2352.4,2351.4,12.39052661]
[1770059600586,0.0011,2352.4,2351.4,1.51431036]
[1770059600767,0.0011,2352.4,2351.5,1.06315118]
[1770059601168,0.0011,2352.4,2351.5,12.52174606]
[1770059601377,0.0011,2352.6,2351.5,12.52174606]
[1770059603002,11.14444715,2352.6,2351.5,1.06315118]
[1770059603995,11.14444715,2352.6,2351.3,1.06319711]
[1770059604199,11.14334715,2352.4,2351.3,1.0632063]
[1770059604981,11.14334715,2352.2,2351.3,1.0632063]
[1770059605202,11.14334715,2352.2,2351.2,1.95525074]
[1770059605508,11.74213857,2352.2,2351.2,0.892]
[1770059605703,11.14334715,2352.0,2351.2,0.892]
[1770059606778,11.74213857,2352.0,2350.9,0.001]
[1770059607112,11.14334715,2351.6,2350.6,0.001]
[1770059607275,12.28902918,2351.6,2350.6,0.001]
[1770059607476,11.14334715,2351.4,2350.6,0.001]
[1770059607892,11.14334715,2351.2,2350.6,0.001]
[1770059609399,12.20664174,2351.2,2350.6,0.001]
[1770059609617,12.20664174,2351.2,2350.4,0.001]
[1770059609985,4.25296673,2351.3,2350.4,0.001]
[1770059609986,1.06324402,2351.3,2350.4,0.001]
[1770059610186,0.2208926,2351.2,2350.4,0.001]
[1770059610390,13.43543592,2351.5,2350.4,0.001]
[1770059610706,14.58111795,2351.5,2351.1,0.001]
[1770059610911,1.06324161,2351.3,2350.4,0.001]
[1770059611678,12.20658876,2351.3,2350.4,0.001]
[1770059612131,3.43774069,2351.5,2350.4,0.001]
[1770059612293,0.34377407,2351.4,2350.4,0.001]
[1770059612616,11.48712122,2351.4,2350.4,0.001]
[1770059613508,1.06324161,2351.3,2350.4,0.001]
[1770059614080,0.34377407,2351.4,2350.4,11.45959488]
[1770059614277,13.18102918,2351.8,2350.4,11.45959488]
[1770059614615,13.09837699,2351.8,2350.4,11.45959488]
[1770059614783,13.09837184,2351.8,2350.4,11.45959488]
[1770059615478,13.09837184,2351.8,2350.5,1.06360348]
[1770059615680,12.03534715,2351.8,2350.5,1.06360348]
[1770059615882,1.42440302,2351.7,2350.6,1.67776123]
[1770059617484,1.42440302,2351.7,2350.7,1.06351299]
[1770059617687,2.48746978,2351.7,2350.7,1.06351299]
[1770059618286,1.42440302,2351.7,2350.7,1.06351299]
[1770059619812,11.14334715,2351.6,2350.4,0.001]
[1770059620012,12.59562723,2351.6,2350.4,1.06464464]
[1770059620586,13.16781081,2351.6,2350.4,1.06464464]
[1770059621402,12.59562723,2351.6,2350.4,1.06464464]
[1770059621602,11.14334715,2351.4,2350.4,0.001]
[1770059621921,12.25768187,2351.3,2350.4,0.001]
[1770059622921,12.25768187,2351.3,2350.6,0.001]
[1770059623716,1.11433472,2351.3,2350.6,0.001]
[1770059623915,1.06425594,2351.5,2350.6,0.001]
[1770059624217,0.0011,2351.5,2350.6,0.001]
[1770059624731,11.14444715,2351.5,2350.6,0.001]
[1770059624921,0.0011,2351.5,2350.6,0.001]
[1770059625217,12.60180055,2351.5,2350.6,0.001]
[1770059628539,13.45714672,2351.4,2350.4,0.001]
[1770059628740,13.46998204,2351.4,2350.4,0.001]
[1770059628911,13.46998204,2351.4,2350.2,0.001]
[1770059628912,12.28617172,2351.3,2350.2,0.001]
[1770059629235,12.28617172,2351.3,2350.0,0.001]
[1770059629236,11.4185749,2350.9,2350.0,0.001]
[1770059629435,11.4185749,2350.9,2349.7,0.001]
[1770059629735,12.56139947,2350.9,2349.7,0.001]
[1770059629937,11.4185749,2350.7,2349.7,0.001]
[1770059630128,0.892,2350.6,2349.7,0.001]
[1770059630323,1.23105749,2350.5,2349.7,0.001]
[1770059630540,0.892,2350.9,2349.7,12.03265588]
[1770059631941,0.892,2350.9,2349.8,13.09557621]
[1770059632750,11.43948745,2351.0,2349.8,13.09557621]
[1770059633938,2.84162342,2351.2,2349.8,13.09557621]
[1770059635922,11.45232277,2351.1,2349.8,13.09557621]
[1770059636128,1.42939462,2351.0,2349.9,13.85608163]
[1770059636432,11.43948745,2351.3,2349.9,13.85608163]
[1770059636864,1.14282457,2351.4,2349.9,13.85608163]
[1770059637467,14.04075879,2351.5,2350.0,12.03265588]
[1770059637652,0.0011,2350.8,2350.0,12.03265588]
[1770059638055,0.0011,2350.8,2350.1,13.09544039]
[1770059638264,0.0011,2350.8,2350.2,0.45044589]
[1770059638633,0.0011,2350.8,2350.2,12.48210177]
[1770059638835,0.0011,2351.0,2350.2,12.48210177]
[1770059640380,0.0011,2351.0,2350.3,13.09534987]
[1770059641471,0.0011,2351.0,2350.2,0.45044589]
[1770059641472,11.44058745,2351.0,2350.2,0.45044589]
[1770059641680,11.44058745,2351.0,2350.2,1.06373461]
[1770059641681,1.14405875,2350.9,2350.2,1.06373461]
[1770059641884,0.0011,2351.0,2350.2,1.06373461]
[1770059642462,0.0011,2351.0,2350.1,4.25495702]
[1770059643376,11.44058745,2351.0,2350.1,1.06378451]
[1770059644670,0.91726411,2350.9,2350.0,0.001]
[1770059644973,11.43948745,2350.9,2350.0,0.001]
[1770059645169,12.58354619,2350.8,2350.0,0.001]
[1770059645538,0.0011,2351.0,2350.1,12.03165588]
[1770059646460,0.0011,2351.0,2350.2,1.06373925]
[1770059650142,1.14648502,2351.4,2350.4,12.03165588]
[1770059650369,0.0011,2351.5,2350.5,12.03165588]
[1770059650669,11.44058745,2351.5,2350.3,0.892]
[1770059650869,11.43948745,2351.3,2350.4,2.462352]
[1770059651082,11.43948745,2351.3,2350.4,1.06461249]
[1770059651584,0.0011,2350.8,2350.4,1.06461249]
[1770059653590,0.0011,2350.8,2350.4,0.001]
[1770059656896,11.44058745,2350.8,2350.1,0.001]
[1770059657096,11.43948745,2350.6,2350.1,0.001]
[1770059659893,0.0011,2350.8,2350.1,0.001]
[1770059664087,11.24419297,2350.6,2350.1,0.001]
[1770059665296,11.24419297,2350.6,2349.8,0.001]
[1770059665497,11.24419297,2350.4,2349.8,0.001]
[1770059665697,1.5263522,2350.8,2349.8,1.06490406]
[1770059665698,12.13619297,2350.7,2349.8,1.06490406]
[1770059665870,1.14758502,2350.8,2349.8,1.06490406]
[1770059666066,0.0011,2350.8,2349.8,0.001]
[1770059669573,0.0011,2350.8,2350.0,11.25309781]
[1770059670376,0.0011,2350.8,2350.1,1.06378451]
[1770059670704,11.24529297,2350.8,2350.0,1.06381287]
[1770059671297,11.88866773,2350.8,2349.8,1.95689688]
[1770059671499,11.81637655,2350.7,2349.8,1.95689688]
[1770059671699,12.45975131,2350.7,2349.8,1.95689688]
[1770059671913,11.24419297,2350.7,2349.8,1.95689688]
[1770059672110,11.24419297,2350.4,2348.9,1.51428371]
[1770059672415,1.14648502,2349.2,2348.3,11.25409781]
[1770059672587,0.00920118,2348.7,2348.3,0.001]
[1770059672787,0.01283532,2348.4,2348.3,0.001]
[1770059672987,1.14648502,2349.2,2348.3,0.001]
[1770059673309,0.91669338,2349.1,2348.3,0.001]
[1770059673510,0.91669338,2349.0,2348.3,0.001]
[1770059673677,0.26717372,2349.2,2348.3,0.001]
[1770059673882,0.91669523,2349.1,2348.3,0.001]
[1770059674083,0.26717372,2349.2,2348.3,0.001]
[1770059674283,0.91552658,2349.1,2348.3,1.06559992]
[1770059674492,0.26717372,2349.2,2348.4,0.62161558]
[1770059674719,0.91552652,2349.1,2348.3,0.001]
[1770059674905,0.26717372,2349.2,2348.3,0.001]
[1770059675301,12.30832392,2349.4,2348.3,0.001]
[1770059675503,0.91461224,2349.3,2348.3,0.001]
[1770059675722,0.91461224,2349.2,2348.3,0.001]
[1770059675885,12.30832392,2349.4,2348.3,0.001]
[1770059676088,12.15880697,2349.3,2348.3,0.001]
[1770059676288,1.32229379,2349.2,2348.5,0.001]
[1770059677624,13.4546545,2349.7,2348.5,0.001]
[1770059677918,0.91340262,2349.6,2348.5,0.001]
[1770059678119,0.91340262,2349.5,2348.5,0.001]
[1770059678421,12.30816163,2349.7,2348.5,0.001]
[1770059678624,2.23307818,2349.6,2348.5,1.65423441]
[1770059678784,1.32001616,2349.6,2348.5,1.65423441]
[1770059680020,1.32001616,2349.6,2348.5,12.90733222]
[1770059680216,1.95592089,2349.8,2348.5,12.90733222]
[1770059680420,0.67188306,2350.0,2348.9,12.31742579]
[1770059680619,0.67188306,2350.0,2349.1,11.25309781]
[1770059682622,0.0011,2350.6,2349.3,11.26593313]
[1770059682826,0.91295113,2350.5,2349.3,11.26593313]
[1770059683031,0.91295113,2350.5,2348.9,4.25676826]
[1770059683032,11.24419297,2350.2,2348.5,12.90733222]
[1770059683229,11.24419297,2349.1,2348.0,2.79104363]
[1770059683538,12.39067799,2348.9,2347.4,1.06500809]
[1770059683738,0.91295358,2348.8,2347.4,12.3181059]
[1770059683942,0.60576233,2348.7,2347.4,12.3181059]
[1770059684158,12.42366664,2348.6,2347.5,1.65792036]
[1770059684306,12.15714655,2348.5,2347.3,1.06604901]
[1770059684639,1.06459992,2348.3,2347.3,0.001]
[1770059684850,0.26652009,2348.6,2347.3,0.001]
[1770059684851,1.33101152,2348.6,2347.3,0.001]
[1770059685037,0.91313045,2348.5,2347.3,0.001]
[1770059685336,0.91313045,2348.4,2347.3,0.001]
[1770059685535,1.33101152,2348.6,2347.3,0.001]
[1770059685741,1.58589783,2348.5,2347.3,0.001]
[1770059685907,0.91237982,2348.4,2347.3,0.001]
[1770059686111,0.67351801,2348.5,2347.3,0.001]
[1770059686546,1.06455459,2348.4,2347.3,0.001]
[1770059687048,0.67351801,2348.5,2347.3,0.001]
[1770059687248,1.32487247,2348.4,2347.3,0.001]
[1770059688240,0.26652009,2348.6,2347.5,11.25309781]
[1770059688416,2.21066524,2349.3,2347.7,11.26593313]
[1770059688752,1.9745769,2349.2,2347.8,1.06482664]
[1770059688940,0.0011,2349.0,2347.9,1.65900664]
[1770059689124,12.09647408,2349.0,2347.7,1.06487107]
[1770059689827,0.0011,2349.0,2347.7,12.92928263]
[1770059690023,0.0011,2349.0,2347.7,12.94211795]
[1770059690846,0.0011,2349.0,2348.0,0.01283532]
[1770059691354,0.0011,2349.0,2347.7,22.34121771]
[1770059691524,0.0011,2349.0,2348.0,0.01283532]
[1770059692723,0.0011,2349.0,2348.1,1.0646906]
[1770059697174,0.0011,2349.0,2348.1,12.92910216]
[1770059697342,0.0011,2349.2,2348.3,11.87724688]
[1770059697659,0.0011,2349.2,2348.4,0.893]
[1770059697864,0.0011,2349.2,2348.5,1.27702469]
[1770059699155,0.0011,2349.2,2348.6,1.06446393]
[1770059701259,0.0011,2349.2,2348.5,4.25785574]
[1770059701645,0.0011,2349.0,2348.5,4.25785574]
[1770059702372,0.0011,2349.2,2348.5,4.25785574]
[1770059702564,0.0011,2349.2,2348.6,0.62282003]
[1770059703348,0.0011,2349.2,2348.7,1.06441861]
[1770059704068,0.0011,2349.2,2348.6,4.88063901]
[1770059704271,12.62888461,2349.2,2348.4,0.893]
[1770059704571,0.0011,2349.2,2348.6,1.06445769]
[1770059705475,0.0011,2349.2,2348.5,1.06450926]
[1770059705784,0.91543803,2349.1,2348.4,1.92436063]
[1770059705941,12.62888461,2349.2,2348.4,1.92436063]
[1770059706141,2.1783315,2349.1,2348.4,1.92436063]
[1770059706458,1.26288846,2349.1,2348.4,1.92436063]
[1770059707781,0.0011,2349.2,2348.4,1.92436063]
[1770059707959,0.91544277,2349.1,2348.4,1.92436063]
[1770059708270,0.0011,2349.2,2348.4,1.92436063]
[1770059708475,0.91546058,2349.1,2348.4,1.92436063]
[1770059708684,0.0011,2349.2,2348.4,13.80160751]
[1770059708851,0.0011,2349.2,2348.5,1.80599017]
[1770059709475,0.0011,2349.2,2348.5,2.87046395]
[1770059709664,0.0011,2349.2,2348.5,1.06447378]
[1770059711471,1.78311333,2349.5,2348.5,12.92888534]
[1770059711782,1.78311333,2349.5,2348.7,11.86441156]
[1770059712762,1.78311333,2349.5,2348.5,1.06447378]
[1770059713078,0.91601638,2349.4,2348.6,0.893]
[1770059713271,1.78311333,2349.5,2348.6,0.893]
[1770059713272,1.78311333,2349.5,2348.6,2.70099756]
[1770059713446,1.14648502,2349.8,2348.8,11.86441156]
[1770059713647,1.14648502,2350.1,2348.8,11.86441156]
[1770059713979,12.62778461,2349.9,2348.7,1.06441861]
[1770059714370,0.0011,2349.2,2348.7,1.06441861]
[1770059714552,0.0011,2349.2,2348.8,0.46687408]
[1770059715664,0.0011,2349.2,2348.9,1.06432798]
[1770059718756,1.5252522,2349.9,2348.9,1.06432798]
[1770059719087,1.5252522,2350.0,2349.0,11.86441156]
[1770059719998,1.5252522,2350.1,2349.0,11.86441156]
[1770059720155,1.5252522,2350.1,2349.2,1.06419206]
[1770059720355,0.0011,2350.2,2349.2,1.95719206]
[1770059720356,1.5263522,2350.2,2349.2,1.95719206]
[1770059721061,1.5263522,2350.2,2349.2,14.93886926]
[1770059721261,0.0011,2350.2,2349.2,14.93886926]
[1770059721474,0.0011,2350.6,2349.6,12.99451252]
[1770059721674,0.0011,2350.6,2349.7,13.49551727]
[1770059721891,0.0011,2350.6,2349.8,0.892]
[1770059722410,0.0011,2350.6,2350.0,1.06382978]
[1770059722976,0.0011,2350.8,2350.0,1.06382978]
[1770059722977,0.0011,2350.8,2350.0,14.04550698]
[1770059725494,0.0011,2350.8,2350.2,12.99451252]
[1770059725697,0.0011,2350.8,2350.3,0.98071415]
[1770059725901,0.0011,2350.8,2350.4,0.892]
[1770059726289,0.0011,2350.8,2350.5,1.06360348]
[1770059727480,0.0011,2350.8,2350.4,1.9556232]
[1770059728294,0.0011,2350.8,2350.4,0.892]
[1770059729205,12.84702911,2350.8,2350.2,0.001]
[1770059729511,1.28470291,2350.7,2350.2,0.001]
[1770059731316,0.0011,2351.0,2350.2,12.9826772]
[1770059731909,0.36653163,2351.2,2350.5,0.01283532]
[1770059732213,0.36653163,2351.2,2350.6,0.892]
[1770059732878,0.36653163,2351.2,2350.7,1.06351299]
[1770059733083,0.0011,2351.5,2350.7,1.06351299]
[1770059733282,0.0011,2351.5,2350.8,0.6209565]
[1770059735808,12.84702911,2351.5,2350.8,0.6209565]
[1770059736109,12.84702911,2351.5,2350.7,1.06351257]
[1770059736301,12.84702911,2351.5,2350.6,1.95552536]
[1770059736793,12.84702911,2351.5,2350.7,1.06350957]
[1770059736981,12.84702911,2351.5,2350.6,5.14620043]
[1770059737181,14.23825968,2351.5,2350.7,1.57809568]
[1770059737383,14.23825968,2351.5,2350.6,0.892]
[1770059737912,15.30143994,2351.5,2350.6,0.892]
[1770059739008,15.30143994,2351.5,2350.3,1.06365851]
[1770059739308,13.75700516,2351.4,2350.2,0.001]
[1770059739487,12.84592911,2351.2,2350.2,0.001]
[1770059739685,1.83298174,2351.3,2350.5,1.06356909]
[1770059739892,16.19343994,2351.5,2350.2,0.001]
[1770059739893,0.0011,2351.5,2350.4,12.9816772]
[1770059740115,0.0011,2351.5,2350.3,17.236449]
[1770059740282,0.0011,2351.5,2350.4,0.01283532]
[1770059740680,0.0011,2351.5,2350.4,12.99451252]
[1770059741416,0.0011,2351.5,2350.4,12.9816772]
[1770059741581,0.0011,2351.5,2350.5,1.7236449]
[1770059742308,0.0011,2351.5,2350.6,1.06355824]
[1770059742682,0.0011,2351.5,2350.6,14.04523544]
[1770059743113,0.0011,2351.6,2350.9,12.99451252]
[1770059743310,0.0011,2351.6,2351.0,13.8736772]
[1770059743494,0.0011,2351.6,2351.1,0.55122674]
[1770059744214,0.0011,2351.6,2351.2,1.06328683]
[1770059744586,0.0011,2351.3,2351.2,1.06328683]
[1770059744784,0.0011,2351.6,2351.2,1.06328683]
[1770059745288,0.0011,2351.7,2351.2,1.06328683]
[1770059745480,0.0011,2352.0,2351.3,13.56844329]
[1770059746300,0.0011,2352.0,2351.5,1.06315118]
[1770059746524,0.0011,2352.0,2351.6,0.892]
[1770059748816,12.84702911,2352.0,2351.3,0.58676609]
[1770059749126,12.84702911,2352.0,2351.1,2.50655549]
[1770059750828,13.90995877,2352.0,2351.1,0.892]
[1770059751028,12.13084763,2351.8,2351.1,0.892]
[1770059751232,1.06402966,2352.0,2351.3,0.01283532]
[1770059751233,0.0011,2352.0,2351.3,0.01283532]
[1770059751530,0.0011,2352.0,2351.2,0.01283532]
[1770059751728,0.0011,2352.0,2351.2,1.81221753]
[1770059752028,12.13194763,2352.0,2351.2,1.79938221]
[1770059752231,12.13194763,2352.0,2351.1,1.95533107]
[1770059753129,12.13194763,2352.0,2351.1,0.892]
[1770059753335,12.13084763,2351.8,2351.1,0.892]
[1770059753538,13.04584446,2351.7,2351.1,0.892]
[1770059753740,13.43543208,2351.6,2350.9,1.06341536]
[1770059754817,13.43543208,2351.6,2350.7,4.25401428]
[1770059755436,12.13084763,2351.9,2350.7,4.25401428]
[1770059755620,0.91535051,2351.8,2350.7,4.25401428]
[1770059755824,0.91535051,2351.7,2350.7,4.25401428]
[1770059756013,12.13084763,2351.9,2350.7,4.25401428]
[1770059756217,0.91534489,2351.8,2350.7,4.25401428]
[1770059756423,0.91534489,2351.7,2350.8,1.79956901]
[1770059757356,0.91534489,2351.7,2350.9,1.06342251]
[1770059757546,12.13084763,2351.8,2350.9,1.06342251]
[1770059757732,0.91556038,2351.7,2350.9,1.06342251]
[1770059757932,12.13194763,2351.8,2351.0,0.47530263]
[1770059758146,0.91556027,2351.7,2351.0,0.47530263]
[1770059758452,12.13194763,2351.8,2351.0,0.47530263]
[1770059758620,0.91568298,2351.7,2351.0,0.47530263]
[1770059758817,12.13194763,2351.8,2351.0,0.47530263]
[1770059759020,0.91568703,2351.7,2351.0,0.47530263]
[1770059759249,13.45154494,2351.8,2351.0,0.47530263]
[1770059759452,0.91605588,2351.7,2351.1,1.06333205]
[1770059759655,13.45154494,2351.8,2351.1,1.06333205]
[1770059759834,0.91605195,2351.7,2351.1,1.06333205]
[1770059760159,13.56760732,2351.7,2350.8,1.06444029]
[1770059760357,12.13084763,2351.5,2350.6,0.893]
[1770059760542,0.91610577,2351.6,2350.5,0.001]
[1770059760543,12.13084763,2351.3,2350.5,0.001]
[1770059760747,12.13084763,2351.1,2350.2,0.001]
[1770059761044,12.13084763,2350.9,2350.2,0.001]
[1770059761223,0.91674691,2350.8,2350.2,1.0647367]
[1770059761424,12.13084763,2350.9,2350.2,1.0647367]
[1770059761632,12.13084763,2350.9,2350.2,0.001]
[1770059762051,12.13084763,2350.7,2350.0,0.001]
[1770059762374,12.13084763,2350.5,2349.6,0.001]
[1770059762659,12.13084763,2350.3,2349.6,0.001]
[1770059762826,0.91676045,2350.2,2349.6,0.001]
[1770059763024,12.13084763,2350.3,2349.6,0.001]
[1770059763260,12.13084763,2350.1,2349.6,0.001]
[1770059763555,12.13084763,2350.1,2349.4,0.001]
[1770059763556,1.30462242,2350.0,2349.4,0.001]
[1770059763765,13.19472268,2349.9,2349.0,0.001]
[1770059763974,13.19472268,2349.9,2348.6,0.001]
[1770059763975,12.13084763,2349.7,2348.6,0.001]
[1770059764126,3.81442864,2349.9,2348.6,0.001]
[1770059764127,13.04638328,2349.6,2348.6,1.06543831]
[1770059764464,12.13084763,2349.6,2348.7,1.06441798]
[1770059764667,1.21308476,2349.6,2348.9,1.06429337]
[1770059764869,12.13084763,2349.9,2349.0,1.06427818]
[1770059765527,12.13084763,2349.9,2348.6,16.03111011]
[1770059765740,12.13084763,2349.9,2348.7,1.06441861]
[1770059766640,1.30462242,2350.0,2348.7,12.84958143]
[1770059766877,13.43547005,2350.0,2348.7,12.84958143]
[1770059767155,13.43547005,2350.0,2348.8,1.7108364]
[1770059767156,13.47439464,2349.9,2348.8,1.7108364]
[1770059767325,13.47439464,2349.9,2348.7,1.06441861]
[1770059768444,13.47439464,2349.9,2348.6,4.25878261]
[1770059768652,13.47439464,2349.9,2348.6,0.001]
[1770059769257,13.47439464,2349.9,2348.7,0.01283532]
[1770059770463,13.47439464,2349.9,2348.8,1.06437329]
[1770059770641,13.47439464,2349.9,2348.9,0.53347018]
[1770059771950,13.19457324,2350.3,2348.9,12.30579768]
[1770059772277,13.19457324,2350.3,2349.0,0.892]
[1770059772679,13.19454978,2350.3,2349.1,1.06423736]
[1770059773280,12.13084763,2350.3,2349.1,12.83656486]
[1770059773448,13.43313239,2350.3,2349.2,13.51372896]
[1770059773650,12.13084763,2350.6,2349.4,11.78516282]
[1770059774582,0.892,2351.2,2350.1,1.06378451]
[1770059774791,12.13084763,2351.7,2350.1,13.72811201]
[1770059774947,13.34404239,2351.6,2350.3,0.01283532]
[1770059775302,12.75038669,2351.6,2350.2,0.53347018]
[1770059775460,12.13084763,2351.6,2350.2,0.53347018]
[1770059776563,12.13084763,2351.6,2350.3,1.06369399]
[1770059776771,13.19395411,2351.6,2350.3,1.06369399]
[1770059776975,12.13084763,2351.4,2350.1,0.892]
[1770059777287,12.13084763,2351.2,2350.1,1.95578425]
[1770059777459,12.13084763,2351.2,2350.2,1.06373586]
[1770059778064,12.13084763,2351.2,2350.1,0.892]
[1770059778278,12.13084763,2351.0,2350.1,0.892]
[1770059778454,12.75038669,2351.0,2350.1,0.892]
[1770059778656,12.13084763,2351.0,2350.1,1.95577657]
[1770059779077,13.19422845,2351.0,2350.1,0.892]
[1770059779351,12.13084763,2351.0,2350.1,1.95577573]
[1770059779557,1.44692502,2350.9,2350.1,1.95577573]
[1770059780890,13.37654992,2351.3,2350.1,14.70572854]
[1770059781186,0.892,2351.3,2350.1,14.70572854]
[1770059783589,1.74462453,2351.5,2350.1,14.70572854]
[1770059783892,12.48454992,2351.5,2350.1,14.70572854]
[1770059784095,0.0011,2351.1,2350.1,14.70572854]
[1770059787800,0.0011,2351.1,2350.1,1.95577573]
[1770059788000,12.48564992,2351.1,2350.1,1.95577573]
[1770059788177,1.24856499,2351.0,2350.1,3.00239723]
[1770059788883,0.0011,2351.1,2350.1,3.00239723]
[1770059789191,0.0011,2351.1,2350.1,15.75235004]
[1770059790588,12.48564992,2351.1,2350.1,3.00239723]
[1770059790794,12.48564992,2351.1,2350.1,1.95577573]
[1770059790994,13.54898361,2351.1,2350.1,1.9557752]
[1770059791196,12.48564992,2351.1,2350.1,1.95578384]
[1770059792075,13.5489919,2351.1,2350.1,1.95578384]
[1770059792314,13.5489919,2351.1,2350.1,0.892]
[1770059792607,12.48454992,2350.9,2349.6,0.892]
[1770059792819,3.29893513,2351.0,2349.6,1.95599202]
[1770059792820,12.48454992,2350.7,2349.6,1.95599202]
[1770059792977,12.48454992,2350.5,2349.6,1.95599202]
[1770059797586,13.54804458,2350.8,2349.6,1.95599202]
[1770059797790,12.48454992,2350.8,2349.6,14.71878015]
[1770059797989,1.64660224,2350.8,2349.7,12.74995281]
[1770059798189,15.40263609,2351.0,2349.7,12.74995281]
[1770059798379,13.39930977,2350.9,2349.7,12.74995281]
[1770059798600,0.91475985,2350.8,2349.7,12.74995281]
[1770059799380,0.91475985,2350.8,2349.8,1.06392033]
[1770059801489,14.46277823,2350.8,2349.8,1.06392033]
[1770059801795,12.48454992,2350.6,2349.7,1.0639632]
[1770059801993,12.48454992,2350.4,2349.6,1.95596996]
[1770059802218,12.48454992,2350.4,2349.7,1.06395815]
[1770059802907,12.48454992,2350.4,2349.6,0.892]
[1770059803224,13.40107525,2350.3,2349.6,0.892]
[1770059803529,13.82465745,2350.2,2349.6,0.892]
[1770059804790,1.34010753,2350.2,2349.6,0.892]
[1770059804997,12.48454992,2350.5,2349.6,0.892]
[1770059805200,0.91533592,2350.4,2349.6,0.892]
[1770059805390,0.91533592,2350.3,2349.6,0.892]
[1770059805720,12.48454992,2350.5,2349.7,1.06396561]
[1770059805885,2.2779141,2350.4,2349.7,1.06396561]
[1770059806086,0.91567203,2350.3,2349.7,1.06396561]
[1770059806290,1.5252522,2350.8,2350.0,12.76278813]
[1770059806620,4.28170608,2351.2,2349.7,1.06396561]
[1770059806621,13.54889904,2351.3,2349.9,13.26640543]
[1770059806785,12.48564992,2351.1,2350.0,1.32664054]
[1770059807716,0.0011,2351.1,2350.1,13.81373732]
[1770059808418,0.0011,2351.1,2350.3,0.01283532]
[1770059808595,0.0011,2351.1,2350.4,0.892]
[1770059809233,0.0011,2350.5,2350.4,0.892]
[1770059809421,0.0011,2351.1,2350.4,0.892]
[1770059809618,0.0011,2351.1,2350.5,1.06360348]
[1770059809933,0.0011,2351.1,2350.6,0.62100174]
[1770059812434,0.0011,2351.1,2350.7,1.06351299]
[1770059815933,11.87787991,2351.1,2350.5,1.06356917]
[1770059816133,0.0011,2351.1,2350.6,1.06355764]
[1770059816348,0.0011,2351.1,2350.6,2.84118438]
[1770059820542,11.87787991,2351.1,2350.5,1.06359539]
[1770059820750,0.0011,2351.1,2350.6,1.06355325]
[1770059821115,0.0011,2351.1,2350.6,1.95555325]
[1770059821328,0.0011,2351.5,2350.9,12.45847681]
[1770059822050,0.0011,2351.5,2351.0,1.06337728]
[1770059822360,0.0011,2351.5,2351.1,2.66953632]
[1770059823756,0.0011,2351.5,2351.1,0.892]
[1770059823757,11.87787991,2351.5,2351.1,0.892]
[1770059823969,11.87787991,2351.5,2350.8,0.892]
[1770059824330,11.87787991,2351.5,2350.7,0.001]
[1770059824662,12.94104867,2351.5,2350.5,0.001]
[1770059824965,11.87677991,2351.3,2350.5,1.06460205]
[1770059825333,11.87677991,2351.3,2350.5,0.001]
[1770059826259,11.87677991,2351.1,2349.8,1.06391762]
[1770059826465,11.87677991,2350.9,2349.8,1.06391762]
[1770059826759,1.95528683,2351.2,2350.0,12.45847681]
[1770059826760,12.76877991,2351.2,2350.0,12.45847681]
[1770059827064,12.76877991,2351.2,2350.1,2.13913121]
[1770059827065,14.32391459,2351.2,2350.1,2.13913121]
[1770059827733,14.27391459,2351.2,2350.1,2.13913121]
[1770059828346,14.27391459,2351.2,2350.2,1.06373925]
[1770059829350,11.87787991,2351.5,2350.2,13.52221606]